Cogmind - Beta 15 @@@ ROGUE MODE // 2025.07.21 @ 20:11:30 Player: KamenAya Result: Destroyed by D-53 Grenadier with Mini Grenade Launcher Performance ------------- Evolutions (1) 500 Regions Visited (3) 600 Robots Destroyed (20) 100 Value Destroyed (531) 531 Prototype IDs (0) 0 Alien Tech Used (0) 0 Bonus (0) 0 TOTAL SCORE: 1731 Bonus ------- None Cogmind --------- Core Integrity 0/400 Matter 210/300 Energy 80/100 System Corruption 0% Temperature Cool (0) Movement Core (100) Ox1 Location -9/Mines Parts ------- > --- POWER (1) -------- (None) > --- PROPULSION (3) --- (None) > --- UTILITY (3) ------ Seismic Detector > --- WEAPON (2) ------- Power Maul > --- INVENTORY (5) ---- Ion Engine Improved Cooling System Mining Laser Peak State ------------ > --- POWER ------------ Improved Ion Engine > --- PROPULSION ------- Aluminum Leg Aluminum Leg Improved Aluminum Leg > --- UTILITY ---------- Improved Terrain Scanner Seismic Detector Tractor Beam > --- WEAPON ----------- Medium Laser Assault Rifle > --- INVENTORY -------- Ion Engine Improved Cooling System Grenade Launcher Mining Laser Power Maul [Rating: 14] Favorites ----------- Power Ion Engine Engine Ion Engine Propulsion Light Treads Treads Light Treads Leg Aluminum Leg Utility Improved Terrain Scanner Device Improved Terrain Scanner Weapon Assault Rifle Energy Gun Medium Laser Ballistic Gun Assault Rifle Launcher Grenade Launcher Impact Weapon Power Maul Build | -11 -10 -9 -9 ------- Run | Yrd Mat Mat Min Slots Evolved 2 | . . 2 . Power . | . . . . Propulsion 1 | . . 1 . Utility 1 | . . 1 . Weapon . | . . . . Parts Attached 16 | 7 . 7 2 Power 2 | 1 . 1 . Engine 2 | 1 . 1 . Core . | . . . . Reactor . | . . . . Propulsion 7 | 2 . 4 1 Treads 2 | 2 . . . Leg 5 | . . 4 1 Wheel . | . . . . Hover . | . . . . Flight . | . . . . Utility 3 | 2 . 1 . Device 3 | 2 . 1 . Storage . | . . . . Processor . | . . . . Hackware . | . . . . Protection . | . . . . Artifact . | . . . . Weapon 4 | 2 . 1 1 Energy Gun 1 | 1 . . . Energy Cannon . | . . . . Ballistic Gun 1 | 1 . . . Ballistic Cannon . | . . . . Launcher 1 | . . 1 . Special Weapon . | . . . . Impact Weapon 1 | . . . 1 Slashing Weapon . | . . . . Piercing Weapon . | . . . . Special Melee Weapon . | . . . . Unidentified Prototypes . | . . . . Parts Lost 9 | . . . 9 Power 1 | . . . 1 Propulsion 3 | . . . 3 Utility 2 | . . . 2 Weapon 3 | . . . 3 Highest Loss Streak 9 | . . . 9 To Critical Strikes . | . . . . Average Backups 4 | 3 4 4 4 Power . | . . . 1 Propulsion 1 | 1 2 1 . Utility . | . . . . Weapon 2 | 1 1 2 2 Tool/Special . | . . . . Unused Backups 5 | . . 2 3 Power 1 | . . . 1 Propulsion 2 | . . 2 . Utility 1 | . . . 1 Weapon 1 | . . . 1 Tool/Special . | . . . . Average Slot Usage (%) 94 | . 100 90 98 Engine 11 | . 14 11 10 Treads 13 | . 28 17 . Leg 14 | . . 6 32 Device 31 | . 28 33 32 Energy Gun 11 | . 14 10 10 Ballistic Gun 11 | . 14 11 10 Peak Build Rating 14 | 9 9 13 14 Average Rating 10 | 5 9 10 13 On Entrance 7 | . 9 9 13 Naked Turns . | . . . . Heaviest Build 15 | 11 11 14 15 Greatest Support 40 | 40 40 40 33 Greatest Overweight (x) 3 | . . 3 1 Average Overweight (x) . | . . . . Largest Inventory Capacity 5 | 5 5 5 5 Average Capacity 5 | 5 5 5 5 Most Carried 5 | 5 5 5 5 Average Carried 4 | 3 4 3 4 Final Capacity 5 | 5 5 5 5 Final Carried 5 | 3 5 5 3 Class Distribution -------------------- 86% | Mutant 13% | Scavenger-Mutant Dominant Class ---------------- Mutant | -10/Materials Mutant | -9/Materials Mutant | -9/Mines Resources | -11 -10 -9 -9 ----------- Run | Yrd Mat Mat Min Matter Collected 623 | 279 39 125 180 Remotely 406 | 62 39 125 180 Salvage Created 528 | 69 125 133 201 Parts 44 | 7 12 9 16 Haulers Intercepted . | . . . . Recyclers Shooed . | . . . . Parts Field Recycled . | . . . . Retrieved Matter . | . . . . Parts Self-Destructed . | . . . . Prevented . | . . . . Kills | -11 -10 -9 -9 ------- Run | Yrd Mat Mat Min Combat Hostiles Destroyed 15 | . 5 3 7 Melee 1 | . . . 1 Guns 11 | . 5 2 4 AOE 3 | . . 1 2 Classes Destroyed 8 | 2 2 2 2 Worker 1 | . . 1 . Builder 1 | . . . 1 Tunneler 2 | 1 . . 1 Recycler 1 | 1 . . . Swarmer 3 | . 3 . . Grunt 9 | . 2 1 6 Sentry 2 | . . 2 . Demolisher 1 | . . . 1 Best Kill Streak 5 | 1 5 3 3 Combat Bots Only 5 | . 5 2 3 Max Kills in Single Turn 2 | 1 1 2 1 Gunslinging . | . . . . Exploded 1 | . . 1 1 Melee 1 | . . . 1 Uniques/NPCs Destroyed . | . . . . Combat | -11 -10 -9 -9 -------- Run | Yrd Mat Mat Min Hostile Shots Fired 89 | . 22 15 52 Missed 29 | . 12 6 11 Hits 60 | . 10 9 41 Projectile 60 | . 10 9 41 AOE 18 | . . . 18 Damage Taken 1283 | . 90 109 1084 Core 436 | . 6 . 430 Absorbed by Shields . | . . . . Core Remaining (%) 98 | 100 97 . . Volleys Fired 49 | 3 13 13 20 Largest 2 | 2 2 2 2 Hottest 80 | 70 70 70 80 Shots Fired 97 | 6 26 26 39 Gun 83 | 6 26 22 29 Cannon . | . . . . Launcher 14 | . . 4 10 Special . | . . . . Kinetic 46 | 3 13 13 17 Thermal 37 | 3 13 9 12 Explosive 14 | . . 4 10 Electromagnetic . | . . . . Robot Hit Streak 6 | 3 6 5 6 Robot Miss Streak 5 | 1 5 4 5 Penetration Max . | . . . . Secondary Targets 2 | . 2 . . Max Gunslinging Chain 1 | . 1 . . Shots Hit Robots 49 | 4 15 12 18 Core Hits 37 | 3 7 8 19 Critical Kills 1 | . . . 1 Critical Parts Destroyed . | . . . . Critical Strikes 1 | . . . 1 Smash 1 | . . . 1 Melee Attacks 1 | . . . 1 Impact 1 | . . . 1 Slashing . | . . . . Piercing . | . . . . Sneak Attacks . | . . . . Combat Hostiles . | . . . . Follow-up Attacks . | . . . . Damage Inflicted 1151 | 50 198 286 617 Guns 507 | 50 198 100 159 Cannons . | . . . . Explosions 598 | . . 186 412 Melee 46 | . . . 46 Ramming . | . . . . Kinetic 235 | 13 74 49 99 Thermal 272 | 37 124 51 60 Explosive 598 | . . 186 412 Electromagnetic . | . . . . Impact 46 | . . . 46 Slashing . | . . . . Piercing . | . . . . Highest Corruption . | . . . . Average Corruption . | . . . . Corruption Purged . | . . . . Corruption Blocked . | . . . . Overload Shots . | . . . . Overflow Damage . | . . . . Projectiles . | . . . . Explosions . | . . . . Melee . | . . . . Knockbacks . | . . . . Impact . | . . . . Kinetic . | . . . . Secondary . | . . . . Self-Inflicted Damage 41 | . . . 41 Shots 2 | . . . 2 Rammed . | . . . . Targets Rammed . | . . . . Kicked . | . . . . Crushed . | . . . . Highest Temperature 117 | 9 117 9 48 Average Temperature 29 | 6 50 5 18 Received Heat Transfer 236 | . 36 54 146 Siege Activations . | . . . . Martial Activations . | . . . . Shielding Activations . | . . . . Robots Disrupted . | . . . . Combat Hostiles . | . . . . Robots Corrupted . | . . . . Combat Hostiles . | . . . . Parts Fried . | . . . . Impact Corruptions . | . . . . Robots Melted . | . . . . Combat Hostiles . | . . . . Parts Melted . | . . . . Heat Transferred 814 | 111 370 148 185 Parts Sabotaged . | . . . . Parts Stolen . | . . . . Parts Stripped . | . . . . Power Chain Reactions . | . . . . Alert | -11 -10 -9 -9 ------- Run | Yrd Mat Mat Min Maximum Alert Level . | . . . . Low Security (%) 100 | 100 100 100 100 Level 1 . | . . . . Level 2 . | . . . . Level 3 . | . . . . Level 4 . | . . . . Level 5 . | . . . . High Security . | . . . . Max Security . | . . . . Peak Influence 100 | 5 100 67 84 Initial 16 | . . . 16 Average 21 | . 37 11 30 Influence Increases 498 | 10 120 151 217 Destroy 0b10 Robot/C 300 | . 100 60 140 Destroy 0b10 Robot/NC 25 | 10 . 5 10 Destroy Leader 70 | . 20 30 20 Allied During Kill 1 | . . . 1 Destroy Structure 72 | . . 26 46 Partial Spotted 15 | . . 15 . Lose Combat Pursuer 15 | . . 15 . Influence Decreases 485 | 10 120 107 248 Entered New Map 28 | . . . 28 Time Decay 431 | 10 120 107 194 Lost Part 14 | . . . 14 Lost Ally 12 | . . . 12 Squads Dispatched 3 | . 1 1 1 Investigation . | . . . . Extermination . | . . . . Reinforcement 3 | . 1 1 1 Assault . | . . . . Garrison . | . . . . Intercept . | . . . . Searches Triggered . | . . . . Construction Impeded 1 | . . . 1 Haulers Reinforced . | . . . . Active Scanning Responses . | . . . . Cargo Convoy Interrupts . | . . . . Stealth | -11 -10 -9 -9 --------- Run | Yrd Mat Mat Min Distress Signals . | . . . . Communications Jammed . | . . . . Distress Signals . | . . . . Times Spotted 35 | . 6 9 20 Peak Tracking Total 13 | . 3 4 13 Tactical Retreats 1 | . . 1 . Traps | -11 -10 -9 -9 ------- Run | Yrd Mat Mat Min Traps Triggered 1 | . . . 1 Indirectly . | . . . . Trap Hack Attempts . | . . . . Triggered . | . . . . Disarmed . | . . . . Reprogrammed . | . . . . Reused . | . . . . Traps Extracted . | . . . . Installed . | . . . . Triggered . | . . . . Machines | -11 -10 -9 -9 ---------- Run | Yrd Mat Mat Min Machines Disabled 2 | . . . 2 Max in Single Turn 2 | . . . 2 Machines Repaired . | . . . . Machines Dismantled . | . . . . Machines Sabotaged . | . . . . Overloaded Fab Kills . | . . . . Hacking | -11 -10 -9 -9 --------- Run | Yrd Mat Mat Min Machines Accessed 2 | . 1 . 1 Terminals . | . . . . Fabricators . | . . . . Repair Stations . | . . . . Recycling Units 1 | . 1 . . Scanalyzers . | . . . . Garrison Access . | . . . . Total Hacks 2 | . 1 . 1 Successful 2 | . 1 . 1 Failed . | . . . . Catastrophic . | . . . . Database Lockouts . | . . . . Manual . | . . . . Terminals . | . . . . Fabricators . | . . . . Repair Stations . | . . . . Recycling Units 1 | . 1 . . Scanalyzers . | . . . . Garrison Access . | . . . . Terminal Hacks 1 | . . . 1 Open Door 1 | . . . 1 Fabricator Hacks . | . . . . Repair Station Hacks . | . . . . Recycling Unit Hacks 1 | . 1 . . Report Inventory 1 | . 1 . . Scanalyzer . | . . . . Garrison Access Hacks . | . . . . Unauthorized Hacks . | . . . . Terminals . | . . . . Fabricators . | . . . . Repair Stations . | . . . . Recycling Units . | . . . . Scanalyzers . | . . . . Garrison Access . | . . . . Data Cores Recovered . | . . . . Used . | . . . . Hacking Detections . | . . . . Full Trace Events . | . . . . Feedback Events . | . . . . Feedback Blocked . | . . . . Robot Schematics Acquired . | . . . . Robots Built . | . . . . Authchips . | . . . . Time . | . . . . Total Robot Build Rating . | . . . . Part Schematics Acquired . | . . . . Parts Built . | . . . . Authchips . | . . . . Time . | . . . . Total Part Build Rating . | . . . . Parts Repaired . | . . . . Time . | . . . . Parts Recycled . | . . . . Recycled Matter . | . . . . Retrieved Matter . | . . . . Retrieved Components . | . . . . Parts Scanalyzed . | . . . . Part Schematics Acquired . | . . . . Parts Damaged . | . . . . Bothacking | -11 -10 -9 -9 ------------ Run | Yrd Mat Mat Min Used RIF Installer . | . . . . Robots Hacked . | . . . . Non-combat . | . . . . Combat . | . . . . Robot Hacks Applied . | . . . . Relay Couplers Released . | . . . . Fabnet Peak Effective % . | . . . . Robots Rewired . | . . . . Allies Hacked . | . . . . Hacks Repelled . | . . . . Allies | -11 -10 -9 -9 -------- Run | Yrd Mat Mat Min Total Allies 2 | . . . 2 Largest Group 2 | . . . 2 Highest-Rated Group 45 | . . . 45 Highest-Rated Ally 31 | . . . 31 Total Orders . | . . . . Ally Attacks 1 | . . . 1 Total Damage 20 | . . . 20 Kills 1 | . . . 1 Allies Corrupted . | . . . . Allies Melted . | . . . . Intel | -11 -10 -9 -9 ------- Run | Yrd Mat Mat Min Active Infowar (turns) 1803 | 28 317 818 640 Terrain 1788 | 28 317 818 625 Seismic 1457 | . . 817 640 Robot Analysis Total . | . . . . Derelict Logs Recovered . | . . . . Drone Launches . | . . . . Drone Recoveries . | . . . . Exploration | -11 -10 -9 -9 ------------- Run | Yrd Mat Mat Min Turns Passed 1924 | 149 317 818 640 Spaces Moved 652 | 70 155 182 245 Core 27 | 13 . 4 10 Treads 319 | 57 155 107 . Legs 306 | . . 71 235 Wheels . | . . . . Hover . | . . . . Flight . | . . . . Fastest Speed 50 | 50 160 120 50 Average Speed 137 | 139 160 145 117 Slowest Speed 200 | 160 160 200 120 Overloaded Moves . | . . . . Propulsion Burnouts . | . . . . Robots Hopped . | . . . . Potential Cave-ins 2 | . . 2 . Cave-ins Triggered . | . . . . Exploration Rate (%) 23 | 5 27 20 40 Regions Visited 3 Branch Regions 1 Pre-discovered Areas . | . . . . Known Exits Taken . | . . . . Unknown Exits Taken 3 | 1 1 1 . Scrap Searched . | . . . . Spaces Dug . | . . . . Terrain Destroyed 104 | . . 39 65 Melee . | . . . . Projectile . | . . . . AOE 104 | . . 39 65 Terrain Rammed . | . . . . Walls Destroyed . | . . . . Machines Disabled . | . . . . Actions | -11 -10 -9 -9 --------- Run | Yrd Mat Mat Min Total 1576 | 115 198 709 554 Wait 821 | 27 29 494 271 Move 649 | 69 154 181 245 Hop . | . . . . Pick Up 18 | 9 2 5 2 Fast Attach 5 | 1 . 2 2 Attach 12 | 6 . 3 3 Detach 2 | . . 1 1 Swap 11 | . . 5 6 Drop 8 | . . 5 3 Fire 49 | 3 13 13 20 Melee 1 | . . . 1 Ram . | . . . . Kick . | . . . . Crush . | . . . . Escape Stasis . | . . . . Rewire . | . . . . Trap . | . . . . Miscellaneous . | . . . . Route ------- -11/Scrapyard -10/Materials (discovered 2 exits: [*Mat] / [*Min]) -9/Materials -9/Mines History --------- Turn | Location | Event 5 | -11/Scrapyard | Discovered new exit (range 15) 150 | -11/Scrapyard | Entered Materials 303 | -10/Materials | Build established: Mutant 339 | -10/Materials | Discovered new exit (range 15) 377 | -10/Materials | Discovered new exit (range 12) 467 | -10/Materials | Entered another Materials area 467 | -9/Materials | Evolved 2 slots: Propulsion x1, Utility x1 1267 | -9/Materials | Discovered new exit (range 9) 1285 | -9/Materials | Entered Mines 1498 | -9/Mines | Met a Derelict who couldn't figure out how to use a Trap Extractor 1880 | -9/Mines | Assembled infested the area 1916 | -9/Mines | Core integrity fell below 50% 1920 | -9/Mines | Core integrity fell below 20% 1925 | -9/Mines | Destroyed by D-53 Grenadier with Mini Grenade Launcher Last Messages --------------- 01909_ U-05 Engineer lays Concrete. 01909_ U-05 Engineer destroyed. 01910_ Imp. Terrain Scanner destroyed. 01910_ Grenade Launcher destroyed. 01910_ as-91137 destroyed. 01911_ Aluminum Leg destroyed. 01913_ The unstable cave ceiling collapses. 01913_ as-70900 destroyed. 01914_ The unstable cave ceiling collapses. 01914_ Med. Laser destroyed. 01915_ Imp. Aluminum Leg destroyed. 01915_ as-59474 destroyed. 01917_ The unstable cave ceiling collapses. 01917_ Aluminum Leg destroyed. 01917_ as-99381 destroyed. 01917_ as-80966 destroyed. 01917_ as-42879 destroyed. 01921_ D-53 Grenadier suffers critical hit (Smash). 01921_ D-53 Grenadier destroyed. Map ----- +----------------------------------------------------+ | ????????# ## ####?# ## #?#?## # | | #???#??# # ######## ## #?#?# #? | | ????#??## ### ## ## ##### ####? | | ????#???# # # ## ##???? | | ? ?????################ ## ###### #????? | | ????? ????##?###??#??## ## ##??## #????? | | ???????##??##??#?#???#?# ## ##?## ! #???? | | ??????#??????#?#####???# ## #??## #* #?#?? | | ????? ????????##?#??#??## ## ##??# # = ##???? | | ????? ???# ????????#?#?# ## #??###### #????? | | ?????? ??? ???????##?#??# #??#????# #????? | | ??????????? ???#??#?????# ####???????# #????? | | ??????????????????#???#?## #?#????#???# #????? | | ??????????? ???????#????#### ##?????????# #????? | | ???????????????#???????????# #???????#??# #????? | | ????????????????????????#### ##??#?#???#? #????? | | ????????????????# ####### #?###??????? #????? | | ???????? ? ??? ## ###### ##?????? ????? | | ????????????????#########%##### #?????? #????? | | ?????????????????????####%* #?????? ?????? | | ???????????????#????## != #?????? ?????? | | ?????????????#??????# ##?????????????? | | ????????????????????# ##?????????????? | | ???????????????????## #?????????????? | | ???????????????????# #?????#???????? | | ???????????????????## d@ #?????????????? | | ????????????????#???# a #?????????????? | | ????????????????????### ##????????????? | | ??????????????????????## #????????????? | | ???????????????????????# a ##???????????? | | ???????????????????????# #???????????? | | ???????????????#??????## # ##???????????? | | ??????????????????????# # ???????????? | | ??????????????????????## #?## ??????????? | | ????????????????????#### % ##????#?????????? | | ????????????????????# aa ###???????????????? | | ????????????????????#!= a ##????????????????? | | ????????????????????#%#### #??#?????????????? | | ??????????????????? = ???# ##??????????????? | | ?????????????????# ????## #??????#???????? | | ?????????????????## ?????## ## #?????????????? | | ??????????????????##???????####?# #?????????????? | | ?????????????????????????????????###?????????????? | | ???????????????????? ????????????????????????????? | | ??????????????????????? ?????????????????????????? | | ?????????????????????????????????????????????????? | | ???????????????????????? ???????????????#????????? | | ?????????????????????????????????????????????????? | | ?????????????????????????????????????????????????? | | ?????????????????????????????????????????????????? | +----------------------------------------------------+ Best States ------------- Heat Dissipation 28 Energy Generation 12 Energy Capacity 265 Matter Stores 300 Matter Capacity 300 Sight Range 16 Terrain Scan Range 16 Terrain Scan Density 10 Evasion (%) 55 Recoil Reduction 2 Item Schematics ----------------- None Robot Schematics ------------------ None Fabricated ------------ Nothing Repaired ---------- Nothing Alien Tech Used ----------------- None Achievements -------------- None Challenges ------------ None Game ------ Seed PropulsionBombBotcube Manual? 0 Play Time 00:14:23 Cumulative 11.5 hours Start 2025.07.21 @ 19:58:01 End 2025.07.21 @ 20:11:30 Sessions 1 Manual Loads 0 Difficulty Rogue Special Mode None Game No. 23 Rogue 23 Adventurer 0 Explorer 0 Win Type - Total 0 Types 0/0/0/0/0/0/0/0/0/0 Lore% 5 Gallery% 18 Achievement% 16 Wizard Run 0 Options --------- Layout 1 ASCII 0 Keyboard 0 Movement Mouse Keybinds 0 Fullscreen 2 Font 24/Smallcaps Map View 50x35 Zoom Use 0% Tactical HUD 1 Map Filters NONE Filters NONE Steam 1 RUN: 4261712f-54b7-4fbe-9376-5fdee4efee89